bitfinex-derivatives/quotes_BNBF0:USTF0_20250529
["timestamp","ask_amount","ask_price","bid_price","bid_amount"]
[1748492109868,0.29191114,685.14,684.41,1.0483331]
[1748492110163,0.29191114,685.14,684.42,1.0483331]
[1748492110367,0.29191114,685.14,684.43,1.0483331]
[1748492110568,0.29191114,685.14,684.44,1.0483331]
[1748492110764,0.29191114,685.14,684.45,1.0483331]
[1748492110968,0.29191114,685.14,684.46,1.0483331]
[1748492111268,0.29191114,685.14,684.47,1.0483331]
[1748492111469,0.29191114,685.14,684.48,1.0483331]
[1748492111669,0.29191114,685.14,684.4,0.444]
[1748492111870,0.29191114,685.14,684.41,1.0484849]
[1748492112168,0.29191114,685.14,684.42,1.0484849]
[1748492112368,0.29191114,685.14,684.43,1.0484849]
[1748492112569,0.29191114,685.14,684.44,1.0485398]
[1748492112771,0.29191114,685.14,684.4,0.444]
[1748492113067,0.29191114,685.14,684.41,1.0485438]
[1748492113271,0.29191114,685.14,684.4,0.444]
[1748492113872,0.29191114,685.14,684.41,1.0486185]
[1748492114070,0.29191114,685.14,684.42,1.0486185]
[1748492114272,0.29191114,685.14,684.43,1.0486185]
[1748492114468,0.29191114,685.14,684.44,1.0486256]
[1748492114672,0.29191114,685.14,684.45,1.0486256]
[1748492114872,0.29191114,685.14,684.4,0.444]
[1748492114873,0.29191114,685.14,684.46,1.0486256]
[1748492115073,0.29191114,685.14,684.47,1.048616]
[1748492115274,0.29191114,685.14,684.48,1.048616]
[1748492115476,0.29191114,685.14,684.4,0.444]
[1748492115769,0.29191114,685.14,684.41,1.0485926]
[1748492115974,0.29191114,685.14,684.42,1.0485926]
[1748492116274,0.29191114,685.14,684.43,1.0488222]
[1748492116475,0.29191114,685.14,684.44,1.0488222]
[1748492116677,0.29191114,685.14,684.45,1.0488222]
[1748492116877,0.29191114,685.14,684.46,1.0488222]
[1748492117073,0.29191114,685.14,684.47,1.0488222]
[1748492117272,0.29191114,685.14,684.48,1.0488222]
[1748492117476,0.29191114,685.14,684.4,0.444]
[1748492117677,0.29191114,685.14,684.41,1.0487984]
[1748492117973,0.29191114,685.14,684.42,1.0487984]
[1748492118177,0.29191114,685.14,684.4,0.444]
[1748492118373,0.29191114,685.14,684.41,1.0483293]
[1748492118573,0.29191114,685.14,684.42,1.0483293]
[1748492118774,0.29191114,685.14,684.43,1.0483293]
[1748492118972,0.29191114,685.14,684.44,1.0483293]
[1748492119179,0.29191114,685.14,684.45,1.0483293]
[1748492119476,0.29191114,685.14,684.46,1.0483293]
[1748492119673,0.29191114,685.14,684.47,1.0482605]
[1748492119873,0.29191114,685.14,684.4,0.444]
[1748492120073,0.29191114,685.14,684.41,1.0482615]
[1748492120274,0.29191114,685.14,684.4,0.444]
[1748492149501,0.29191114,685.14,684.41,0.496]
[1748492161312,0.29191114,685.14,684.42,0.627]
[1748492183225,0.25405261,684.97,684.42,0.627]
[1748492183423,0.29198785,684.96,684.42,0.627]
[1748492208338,0.29198785,684.96,684.27,0.476]
[1748492219948,0.29198785,684.96,684.27,0.13729625]
[1748492220252,0.29198785,684.96,684.09,0.567]
[1748492231760,0.25444083,684.75,684.09,0.567]
[1748492232055,0.29208166,684.74,684.09,0.567]
[1748492241769,0.29208166,684.74,682.64,0.432]
[1748492241967,0.29208166,684.74,682.65,0.57444283]
[1748492242163,0.29208166,684.74,682.66,0.57444283]
[1748492242368,0.29208166,684.74,682.64,0.432]
[1748492242568,0.29208166,684.74,682.65,0.57436626]
[1748492242763,0.29208166,684.74,682.66,0.57436626]
[1748492242965,0.29208166,684.74,682.23,0.46375377]
[1748492243163,0.29208166,684.74,682.24,0.57423058]
[1748492243364,0.29208166,684.74,682.25,0.57423058]
[1748492243566,0.29208166,684.74,682.2,0.46375377]
[1748492243768,0.29208166,684.74,682.18,0.46375377]
[1748492243964,0.29208166,684.74,682.11,0.46375377]
[1748492244163,0.29208166,684.74,682.12,0.29320354]
[1748492244368,0.29208166,684.74,682.12,1.30420354]
[1748492244567,0.29208166,684.74,682.13,0.57410629]
[1748492244868,0.29208166,684.74,682.14,0.29319494]
[1748492245870,0.29208166,684.74,682.15,0.57400075]
[1748492246067,0.29208166,684.74,682.16,0.57400041]
[1748492246268,0.29208166,684.74,682.17,0.5739069]
[1748492246471,0.29208166,684.74,682.18,0.5739069]
[1748492246668,0.29208166,684.74,682.14,0.29319494]
[1748492246868,0.29208166,684.74,682.15,0.57390698]
[1748492247067,0.29208166,684.74,682.14,0.29319494]
[1748492247269,0.29208166,684.74,682.25,0.46375377]
[1748492247573,0.29208166,684.74,682.26,0.57390698]
[1748492247769,0.29208166,684.74,682.27,0.57390698]
[1748492247972,0.29208166,684.74,682.28,0.57390698]
[1748492248176,0.29208166,684.74,682.29,0.57381039]
[1748492248371,0.29208166,684.74,682.19,0.46375377]
[1748492248577,0.29208166,684.74,682.2,0.57371487]
[1748492248869,0.29208166,684.74,682.21,0.57371487]
[1748492249075,0.29208166,684.74,682.22,0.57371487]
[1748492249269,0.29208166,684.74,682.23,0.57371487]
[1748492249571,0.29208166,684.74,682.24,0.57371487]
[1748492249770,0.29208166,684.74,682.25,0.57371487]
[1748492249970,0.29208166,684.74,682.26,0.57371487]
[1748492250274,0.29208166,684.74,682.27,0.57356004]
[1748492250471,0.29208166,684.74,682.28,0.57345707]
[1748492250670,0.29208166,684.74,682.23,0.46375377]
[1748492251072,0.29208166,684.74,682.24,0.46375377]
[1748492251371,0.29208166,684.74,682.26,0.46375377]
[1748492251876,0.29208166,684.74,682.28,0.46375377]
[1748492252074,0.29208166,684.74,682.38,0.46375377]
[1748492252270,0.29208166,684.74,682.14,0.29319494]
[1748492252271,0.29208166,684.74,682.4,0.46375377]
[1748492252476,0.29208166,684.74,682.41,0.57318871]
[1748492252772,0.29208166,684.74,682.41,0.46375377]
[1748492253072,0.29208166,684.74,682.61,0.46375377]
[1748492253275,0.29208166,684.74,682.63,0.46375377]
[1748492253477,0.29208166,684.74,682.43,0.46375377]
[1748492253776,0.29208166,684.74,682.44,1.03678202]
[1748492253974,0.29208166,684.74,682.44,0.46375377]
[1748492254177,0.29208166,684.74,682.47,0.46375377]
[1748492254377,0.29208166,684.74,682.14,0.29319494]
[1748492254378,0.29208166,684.74,682.46,0.46375377]
[1748492255175,0.29208166,684.74,682.45,0.46375377]
[1748492255373,0.29208166,684.74,682.43,0.46375377]
[1748492255573,0.29208166,684.74,682.44,1.03647012]
[1748492255879,0.29208166,684.74,682.47,0.46375377]
[1748492256077,0.29208166,684.74,682.48,0.57270019]
[1748492256373,0.29208166,684.74,682.47,0.46375377]
[1748492256774,0.29208166,684.74,682.48,0.57273313]
[1748492256979,0.29208166,684.74,682.49,0.57273313]
[1748492257576,0.29208166,684.74,682.43,0.46375377]
[1748492258278,0.29208166,684.74,682.4,0.46375377]
[1748492258678,0.29208166,684.74,682.41,0.57251742]
[1748492259174,0.29208166,684.74,682.42,0.57251698]
[1748492259674,0.29208166,684.74,682.14,0.29319494]
[1748492259675,0.29208166,684.74,682.56,0.46375377]
[1748492260076,0.29208166,684.74,682.57,1.03619139]
[1748492260274,0.29208166,684.74,682.57,0.57243762]
[1748492260876,0.29208166,684.74,682.58,0.57243762]
[1748492261079,0.29208166,684.74,682.59,0.57243762]
[1748492261280,0.29208166,684.74,682.14,0.29319494]
[1748492261281,0.29208166,684.74,682.6,0.57243762]
[1748492261480,0.29208166,684.74,682.61,0.57243762]
[1748492261681,0.29208166,684.74,682.76,0.46375377]
[1748492261877,0.29208166,684.74,682.97,0.46375377]
[1748492262081,0.29208166,684.74,682.98,1.03636935]
[1748492262279,0.29208166,684.74,682.99,0.57261614]
[1748492262577,0.29208166,684.74,683.0,0.5726167]
[1748492262777,0.29208166,684.74,683.01,0.5726167]
[1748492262977,0.29208166,684.74,682.72,0.46375377]
[1748492262978,0.29208166,684.74,683.02,0.5726167]
[1748492263180,0.29208166,684.74,683.03,0.5726167]
[1748492263379,0.29208166,684.74,683.04,0.5726167]
[1748492263581,0.29208166,684.74,683.05,0.5726167]
[1748492263780,0.29208166,684.74,683.06,0.57289425]
[1748492263980,0.29208166,684.74,683.07,0.57289425]
[1748492264177,0.29208166,684.74,682.72,0.46375377]
[1748492264678,0.29208166,684.74,682.71,0.46375377]
[1748492265384,0.29208166,684.74,682.72,0.57315942]
[1748492265578,0.29208166,684.74,682.73,0.57315942]
[1748492265883,0.29208166,684.74,682.74,0.57315942]
[1748492266182,0.29208166,684.74,682.71,0.46375377]
[1748492266584,0.29208166,684.74,682.72,0.57348618]
[1748492266777,0.29208166,684.74,682.73,0.57348618]
[1748492266977,0.29208166,684.74,682.74,0.57348618]
[1748492267178,0.29208166,684.74,682.75,0.57348618]
[1748492267379,0.29208166,684.74,682.76,0.57348618]
[1748492267583,0.29208166,684.74,682.0,0.46375377]
[1748492267584,0.29208166,684.74,682.77,0.57348618]
[1748492267783,0.29208166,684.74,682.78,0.57348618]
[1748492267979,0.29208166,684.74,682.86,0.46375377]
[1748492268181,0.29208166,684.74,682.87,0.57382299]
[1748492268379,0.29208166,684.74,682.85,0.46375377]
[1748492268582,0.29208166,684.74,682.86,0.57369582]
[1748492268783,0.29208166,684.74,682.87,0.57369582]
[1748492268983,0.29208166,684.74,682.88,0.57369582]
[1748492269286,0.29208166,684.74,682.89,0.57369582]
[1748492269479,0.29208166,684.74,682.9,0.57369582]
[1748492269687,0.29208166,684.74,682.91,0.57357889]
[1748492269885,0.29208166,684.74,682.92,0.57363988]
[1748492270187,0.29208166,684.74,682.38,0.46375377]
[1748492270383,0.29208166,684.74,682.39,0.29308753]
[1748492270584,0.29208166,684.74,682.5,0.46375377]
[1748492270886,0.29208166,684.74,682.51,0.86670717]
[1748492271086,0.29208166,684.74,682.52,0.86670288]
[1748492271281,0.29208166,684.74,682.53,0.86669859]
[1748492271484,0.29208166,684.74,682.54,0.57367118]
[1748492271684,0.29208166,684.74,682.55,0.57367118]
[1748492271880,0.29208166,684.74,682.53,0.29302741]
[1748492271881,0.29208166,684.74,682.56,0.57359085]
[1748492272084,0.29208166,684.74,682.53,0.29302741]
[1748492272281,0.29208166,684.74,682.54,0.57359085]
[1748492272587,0.29208166,684.74,682.55,0.57359048]
[1748492272784,0.29208166,684.74,682.56,0.57359048]
[1748492272984,0.29208166,684.74,682.53,0.29302741]
[1748492272985,0.29208166,684.74,682.57,0.57359048]
[1748492273181,0.29208166,684.74,682.58,0.57359048]
[1748492273485,0.29208166,684.74,682.59,0.57348789]
[1748492273679,0.29208166,684.74,682.6,0.57348788]
[1748492273883,0.29208166,684.74,682.53,0.29302741]
[1748492274482,0.29208166,684.74,682.54,0.57348919]
[1748492274681,0.29208166,684.74,682.53,0.29302741]
[1748492275585,0.29208166,684.74,682.54,0.57348819]
[1748492275783,0.29208166,684.74,682.55,0.57348831]
[1748492276084,0.29208166,684.74,682.53,0.29302741]
[1748492276489,0.29208166,684.74,682.54,0.57348876]
[1748492276687,0.29208166,684.74,682.67,0.46375377]
[1748492277290,0.29208166,684.74,682.62,0.46375377]
[1748492277490,0.29208166,684.74,682.63,0.5734887]
[1748492277790,0.29208166,684.74,682.64,0.57347979]
[1748492277991,0.29208166,684.74,682.64,0.46375377]
[1748492278590,0.29208166,684.74,682.65,0.528]
[1748492279190,0.29208166,684.74,682.65,0.99175377]
[1748492279592,0.29208166,684.74,682.66,0.46375377]
[1748492279786,0.29208166,684.74,682.65,0.99175377]
[1748492280293,0.29208166,684.74,682.67,0.46375377]
[1748492280591,0.29208166,684.74,682.69,0.46375377]
[1748492280790,0.29208166,684.74,682.7,0.573474]
[1748492280985,0.29208166,684.74,682.71,0.57347408]
[1748492281188,0.29208166,684.74,682.69,0.46375377]
[1748492281189,0.29208166,684.74,682.72,0.57347408]
[1748492281389,0.29208166,684.74,682.7,0.46375377]
[1748492281589,0.29208166,684.74,682.74,0.46375377]
[1748492281792,0.29208166,684.74,682.75,0.57347348]
[1748492281993,0.29208166,684.74,682.76,0.57347348]
[1748492282295,0.29208166,684.74,682.77,0.57347348]
[1748492282588,0.29208166,684.74,682.78,0.57343298]
[1748492282795,0.29208166,684.74,682.75,0.46375377]
[1748492282989,0.29208166,684.74,682.76,0.57343355]
[1748492283195,0.29208166,684.74,682.76,0.46375377]
[1748492283394,0.29208166,684.74,682.77,0.57343307]
[1748492283595,0.29208166,684.74,682.78,0.57343307]
[1748492283889,0.29208166,684.74,682.79,0.57343307]
[1748492284194,0.29208166,684.74,682.83,0.46375377]
[1748492284387,0.29208166,684.74,682.84,0.57343307]
[1748492284592,0.29208166,684.74,682.85,0.57343307]
[1748492284892,0.29208166,684.74,682.86,0.57343307]
[1748492285091,0.29208166,684.74,682.87,0.57338765]
[1748492285287,0.29208166,684.74,682.88,0.57338762]
[1748492285489,0.29208166,684.74,682.86,0.46375377]
[1748492285688,0.29208166,684.74,682.65,0.528]
[1748492285689,0.29208166,684.74,682.88,0.46375377]
[1748492285889,0.29208166,684.74,682.89,0.57338177]
[1748492286189,0.29208166,684.74,682.91,0.46375377]
[1748492286494,0.29208166,684.74,682.95,0.46375377]
[1748492286690,0.29208166,684.74,682.96,0.57338196]
[1748492286891,0.29208166,684.74,682.97,0.57338196]
[1748492287093,0.29208166,684.74,682.89,0.46375377]
[1748492287290,0.29208166,684.74,682.9,0.57390873]
[1748492287493,0.29208166,684.74,682.91,0.57390862]
[1748492287693,0.29208166,684.74,682.92,0.57390862]
[1748492287898,0.29208166,684.74,682.93,0.57390862]
[1748492288090,0.29208166,684.74,682.94,0.57390862]
[1748492288395,0.29208166,684.74,682.95,0.57390862]
[1748492288593,0.29208166,684.74,682.9,0.46375377]
[1748492288795,0.29208166,684.74,682.91,1.03767068]
[1748492288993,0.29208166,684.74,682.92,0.57391717]
[1748492289193,0.29208166,684.74,682.93,0.57386635]
[1748492289492,0.29208166,684.74,682.94,0.57372241]
[1748492289696,0.29208166,684.74,682.95,0.57372241]
[1748492289998,0.29208166,684.74,682.96,0.57371534]
[1748492290296,0.29208166,684.74,682.97,0.57371534]
[1748492290497,0.29208166,684.74,682.98,0.57358521]
[1748492290697,0.29208166,684.74,682.99,0.57358594]
[1748492290897,0.29208166,684.74,682.75,0.46375377]
[1748492291094,0.29208166,684.74,682.76,0.57358351]
[1748492291293,0.29208166,684.74,682.77,0.57358351]
[1748492291494,0.29208166,684.74,682.74,0.46375377]
[1748492291694,0.29208166,684.74,682.79,0.46375377]
[1748492291894,0.29208166,684.74,682.8,0.57348201]
[1748492292094,0.29208166,684.74,682.79,0.46375377]
[1748492292299,0.29208166,684.74,682.8,0.57348159]
[1748492292501,0.29208166,684.74,682.81,0.57340274]
[1748492292695,0.29208166,684.74,682.82,0.57339987]
[1748492292894,0.29208166,684.74,682.83,0.57339987]
[1748492293093,0.29208166,684.74,682.84,0.5733992]
[1748492293292,0.29208166,684.74,682.85,0.5733992]
[1748492293495,0.29208166,684.74,682.86,0.57328104]
[1748492293798,0.29208166,684.74,682.78,0.403]
[1748492294301,0.29208166,684.74,682.79,0.57345377]
[1748492294495,0.29208166,684.74,682.8,0.57345377]
[1748492294696,0.29208166,684.74,682.81,0.57345263]
[1748492294896,0.29208166,684.74,682.82,0.57345263]
[1748492295099,0.29208166,684.74,682.83,0.57345132]
[1748492295299,0.29208166,684.74,682.78,0.403]
[1748492295500,0.29208166,684.74,682.79,0.57367621]
[1748492295797,0.29208166,684.74,682.82,0.46375377]
[1748492295995,0.29208166,684.74,682.78,0.403]
[1748492295996,0.29208166,684.74,682.88,0.46375377]
[1748492296299,0.29208166,684.74,682.85,0.46375377]
[1748492296795,0.29208166,684.74,682.83,0.46375377]
[1748492296998,0.29208166,684.74,682.84,0.46375377]
[1748492297200,0.29208166,684.74,682.78,0.403]
[1748492297201,0.29208166,684.74,682.79,0.46375377]
[1748492297601,0.29208166,684.74,682.78,0.403]
[1748492297794,0.29208166,684.74,683.05,0.46375377]
[1748492297996,0.29208166,684.74,682.78,0.403]
[1748492297997,0.29208166,684.74,683.07,0.46375377]
[1748492298195,0.29208166,684.74,682.93,0.46375377]
[1748492298395,0.29208166,684.74,682.92,0.46375377]
[1748492298900,0.29208166,684.74,682.93,0.29285578]
[1748492299700,0.29208166,684.74,682.94,0.5737162]
[1748492299897,0.29208166,684.74,682.95,0.57371672]
[1748492300099,0.29208166,684.74,682.93,0.29285578]
[1748492300299,0.29208166,684.74,682.94,0.57371879]
[1748492300502,0.29208166,684.74,682.95,0.57371884]
[1748492300699,0.29208166,684.74,682.96,0.57371937]
[1748492300904,0.29208166,684.74,682.97,0.57372025]
[1748492301699,0.29208166,684.74,683.09,0.46375377]
[1748492301899,0.29208166,684.74,683.1,0.46375377]
[1748492302199,0.29208166,684.74,683.11,0.57373729]
[1748492302399,0.29208166,684.74,683.09,0.46375377]
[1748492302600,0.29208166,684.74,683.08,0.46375377]
[1748492302999,0.29208166,684.74,683.09,0.57398972]
[1748492303198,0.29208166,684.74,683.07,0.46375377]
[1748492303402,0.29208166,684.74,683.08,1.03774454]
[1748492303604,0.29208166,684.74,683.08,0.46375377]
[1748492303802,0.29208166,684.74,683.09,0.57399077]
[1748492304003,0.29208166,684.74,683.1,0.57399021]
[1748492304199,0.29208166,684.74,683.11,0.57398862]
[1748492304405,0.29208166,684.74,683.09,0.57399077]
[1748492304606,0.29208166,684.74,683.1,0.57398738]
[1748492304906,0.29208166,684.74,683.11,0.57398688]
[1748492305105,0.29208166,684.74,683.09,1.03774454]
[1748492305304,0.29208166,684.74,683.1,0.57397723]
[1748492305504,0.29208166,684.74,683.09,0.57399077]
[1748492306507,0.29208166,684.74,683.1,0.5739682]
[1748492306701,0.29208166,684.74,683.11,0.5739682]
[1748492307001,0.29208166,684.74,683.12,0.5739682]
[1748492307201,0.29208166,684.74,683.13,0.5739682]
[1748492307503,0.29208166,684.74,683.09,0.57399077]
[1748492307708,0.29208166,684.74,683.1,0.57380445]
[1748492307905,0.29208166,684.74,683.11,0.57380376]
[1748492308105,0.29208166,684.74,683.12,0.57380376]
[1748492308303,0.29208166,684.74,683.09,0.57399077]
[1748492308502,0.29208166,684.74,683.1,0.57339349]
[1748492308808,0.29208166,684.74,683.11,0.57339171]
[1748492309011,0.29208166,684.74,683.12,0.57377696]
[1748492309308,0.29208166,684.74,683.13,0.57341362]
[1748492309608,0.29208166,684.74,683.14,0.57341362]
[1748492309806,0.29208166,684.74,683.15,0.57341362]
[1748492310004,0.29208166,684.74,683.16,0.57341362]
[1748492310208,0.29208166,684.74,683.17,0.57340944]
[1748492310407,0.29208166,684.74,683.09,1.03774454]
[1748492310609,0.29208166,684.74,683.11,0.46375377]
[1748492310908,0.29208166,684.74,683.12,0.57311824]
[1748492311203,0.29208166,684.74,683.13,0.57310896]
[1748492311409,0.29208166,684.74,683.14,0.57310896]
[1748492311607,0.29208166,684.74,683.15,0.57285074]
[1748492311803,0.29208166,684.74,683.12,0.46375377]
[1748492312003,0.29208166,684.74,683.13,0.57285073]
[1748492312206,0.29208166,684.74,683.12,0.46375377]
[1748492312207,0.29208166,684.74,683.14,0.57285073]
[1748492312408,0.29208166,684.74,683.15,0.572854]
[1748492312605,0.29208166,684.74,683.16,0.57285614]
[1748492312904,0.29208166,684.74,683.17,0.57285614]
[1748492313108,0.29208166,684.74,683.18,0.57285628]
[1748492313303,0.29208166,684.74,683.19,0.57284672]
[1748492313509,0.29208166,684.74,683.09,0.57399077]
[1748492313708,0.29208166,684.74,683.1,0.57263117]
[1748492313908,0.29208166,684.74,683.11,0.57263117]
[1748492314105,0.29208166,684.74,683.12,0.5726285]
[1748492314309,0.29208166,684.74,683.13,0.5726285]
[1748492314509,0.29208166,684.74,683.09,0.57399077]
[1748492314510,0.29208166,684.74,683.14,0.57245097]
[1748492314705,0.29208166,684.74,683.15,0.57245097]
[1748492314905,0.29208166,684.74,683.16,0.57245097]
[1748492315208,0.29208166,684.74,683.1,0.46375377]
[1748492315404,0.29208166,684.74,683.11,1.0360567]
[1748492315609,0.29208166,684.74,683.15,0.46375377]
[1748492315806,0.29208166,684.74,683.17,0.46375377]
[1748492316007,0.29208166,684.74,683.18,0.57226559]
[1748492316204,0.29208166,684.74,683.19,0.57226559]
[1748492316406,0.29208166,684.74,683.2,0.5720538]
[1748492316604,0.29208166,684.74,683.21,0.57212902]
[1748492316804,0.29208166,684.74,683.18,0.46375377]
[1748492317008,0.29208166,684.74,683.19,0.57212898]
[1748492317208,0.29208166,684.74,683.2,0.57217906]
[1748492317410,0.29208166,684.74,683.21,0.57217906]
[1748492317605,0.29208166,684.74,683.22,0.57217913]
[1748492317809,0.29208166,684.74,683.23,0.57217913]
[1748492318009,0.29208166,684.74,683.24,0.57217913]
[1748492318207,0.29208166,684.74,683.23,0.46375377]
[1748492318504,0.29208166,684.74,683.27,0.46375377]
[1748492319206,0.29208166,684.74,683.28,0.46375377]
[1748492319912,0.29208166,684.74,683.29,0.5719927]
[1748492320112,0.29208166,684.74,683.3,0.5719927]
[1748492320306,0.29208166,684.74,683.31,0.57178719]
[1748492320508,0.29208166,684.74,683.09,0.57399077]
[1748492320509,0.29208166,684.74,683.32,0.57178819]
[1748492320709,0.29208166,684.74,683.27,0.46375377]
[1748492321108,0.29208166,684.74,683.29,0.46375377]
[1748492321308,0.29208166,684.74,683.3,0.57185783]
[1748492321512,0.29208166,684.74,683.31,0.57185714]
[1748492321813,0.29208166,684.74,683.28,0.85675377]
[1748492322310,0.29208166,684.74,683.3,0.46375377]
[1748492322915,0.29208166,684.74,683.31,0.57195175]
[1748492323116,0.29208166,684.74,683.33,0.46375377]
[1748492323416,0.29208166,684.74,683.34,0.57200797]
[1748492323616,0.29208166,684.74,683.33,0.46375377]
[1748492323816,0.29208166,684.74,683.32,0.46375377]
[1748492324014,0.29208166,684.74,683.33,0.57200827]
[1748492324217,0.29208166,684.74,683.34,1.03576204]
[1748492324415,0.29208166,684.74,683.35,0.57200827]
[1748492324616,0.29208166,684.74,683.36,0.57200808]
[1748492324817,0.29208166,684.74,683.37,0.57200758]
[1748492325015,0.29208166,684.74,683.28,0.393]
[1748492326417,0.29208166,684.74,683.29,0.5720795]
[1748492326616,0.29208166,684.74,683.28,0.393]
[1748492327915,0.29208166,684.74,683.29,0.57217286]
[1748492328122,0.29208166,684.74,683.3,0.57217286]
[1748492328416,0.29208166,684.74,683.3,0.46375377]
[1748492328621,0.29208166,684.74,683.31,0.57218564]
[1748492328922,0.29208166,684.74,683.32,0.57218691]
[1748492329221,0.29208166,684.74,683.33,0.46375377]
[1748492329517,0.29208166,684.74,683.34,0.57226244]
[1748492329721,0.29208166,684.74,683.35,0.57226244]
[1748492330017,0.29208166,684.74,683.36,0.57226244]
[1748492330215,0.29208166,684.74,683.37,1.0360118]
[1748492330415,0.29208166,684.74,683.38,0.57226053]
[1748492330620,0.29208166,684.74,683.39,0.57226053]
[1748492330817,0.29208166,684.74,683.37,0.46375377]
[1748492331321,0.29208166,684.74,683.48,0.46375377]
[1748492331621,0.29208166,684.74,683.49,0.46375377]
[1748492332219,0.29208166,684.74,683.54,0.46375377]
[1748492332422,0.29208166,684.74,683.55,0.57234282]
[1748492332624,0.29208166,684.74,683.47,0.46375377]
[1748492332924,0.29208166,684.74,683.42,0.46375377]
[1748492333123,0.29208166,684.74,683.43,0.57243334]
[1748492333320,0.29208166,684.74,683.42,0.46375377]
[1748492334121,0.29208166,684.74,683.43,0.57254789]
[1748492334426,0.29208166,684.74,683.42,0.46375377]
[1748492334727,0.29208166,684.74,683.43,0.57254795]
[1748492334921,0.29208166,684.74,683.44,0.57254795]
[1748492335125,0.29208166,684.74,683.45,0.57254795]
[1748492335426,0.29208166,684.74,683.46,0.5725968]
[1748492335621,0.29208166,684.74,683.45,0.522]
[1748492335821,0.29208166,684.74,683.46,0.572597]
[1748492336029,0.29208166,684.74,683.45,0.522]
[1748492336227,0.29208166,684.74,683.46,0.572604]
[1748492336430,0.29208166,684.74,683.47,0.57259588]
[1748492336625,0.29208166,684.74,683.45,0.522]
[1748492337228,0.29208166,684.74,683.46,0.57259729]
[1748492337428,0.29208166,684.74,683.45,0.522]
[1748492337625,0.29208166,684.74,683.46,0.57259764]
[1748492337826,0.29208166,684.74,683.45,0.522]
[1748492338030,0.29208166,684.74,683.46,0.57259764]
[1748492338324,0.29208166,684.74,683.45,0.522]
[1748492340126,0.29208166,684.74,683.46,0.57320526]
[1748492340430,0.29208166,684.74,683.47,0.5732039]
[1748492340629,0.29208166,684.74,683.45,0.522]
[1748492341524,0.29208166,684.74,683.46,0.57320353]
[1748492341728,0.29208166,684.74,683.45,0.522]
[1748492341929,0.29208166,684.74,683.46,0.57330829]
[1748492342128,0.29208166,684.74,683.47,0.57330825]
[1748492342427,0.29208166,684.74,683.48,0.57330825]
[1748492342625,0.29208166,684.74,683.49,0.57330805]
[1748492342829,0.29208166,684.74,683.5,0.57330863]
[1748492343027,0.29208166,684.74,683.51,0.57330863]
[1748492343230,0.29208166,684.74,683.52,0.57341062]
[1748492343526,0.29208166,684.74,683.53,0.57341062]
[1748492343727,0.29208166,684.74,683.54,0.57341062]
[1748492343934,0.29208166,684.74,683.55,0.57341062]
[1748492344231,0.29208166,684.74,683.56,0.57341062]
[1748492344527,0.29208166,684.74,683.57,0.57371135]
[1748492344732,0.29208166,684.74,683.58,0.57371135]
[1748492344933,0.29208166,684.74,683.59,0.57374557]
[1748492345229,0.29208166,684.74,683.45,0.522]
[1748492345431,0.29208166,684.74,683.46,0.57372301]
[1748492345731,0.29208166,684.74,683.47,0.57372301]
[1748492345927,0.29208166,684.74,683.48,0.57372301]
[1748492346127,0.29208166,684.74,683.49,0.57372301]
[1748492346330,0.29208166,684.74,683.5,0.57372301]
[1748492346627,0.29208166,684.74,683.45,0.522]
[1748492346628,0.29208166,684.74,683.51,0.57389425]
[1748492346828,0.29208166,684.74,683.45,0.522]
[1748492347335,0.29208166,684.74,683.46,0.57389428]
[1748492347533,0.29208166,684.74,683.45,0.522]
[1748492348130,0.29208166,684.74,683.46,0.57410457]
[1748492348333,0.29208166,684.74,683.45,0.522]
[1748492349138,0.29208166,684.74,683.46,0.57436792]
[1748492349338,0.29208166,684.74,683.47,0.57436792]
[1748492349637,0.29208166,684.74,683.45,0.522]
[1748492349638,0.29208166,684.74,683.48,0.57448137]
[1748492349832,0.29208166,684.74,683.49,0.57448137]
[1748492350037,0.29208166,684.74,683.5,0.5744813]
[1748492350338,0.29208166,684.74,683.51,0.57448126]
[1748492350534,0.29208166,684.74,683.52,0.57448126]
[1748492350738,0.29208166,684.74,683.53,0.57448126]
[1748492350938,0.29208166,684.74,683.54,0.57448126]
[1748492351133,0.29208166,684.74,683.45,0.522]
[1748492351337,0.29208166,684.74,683.46,0.57457768]
[1748492351537,0.29208166,684.74,683.47,0.57473046]
[1748492351835,0.29208166,684.74,683.45,0.522]
[1748492352038,0.29208166,684.74,683.46,0.57473038]
[1748492352339,0.29208166,684.74,683.45,0.522]
[1748492353941,0.29208166,684.74,683.46,0.57486058]
[1748492354141,0.29208166,684.74,683.45,0.522]
[1748492354943,0.29208166,684.74,683.46,0.57485958]
[1748492355143,0.29208166,684.74,683.47,0.57485958]
[1748492355443,0.29208166,684.74,683.48,0.57485958]
[1748492355740,0.29208166,684.74,683.45,0.522]
[1748492355944,0.29208166,684.74,683.46,0.57511078]
[1748492356145,0.29208166,684.74,683.45,0.522]
[1748492356343,0.29208166,684.74,683.46,0.57510254]
[1748492356543,0.29208166,684.74,683.45,0.522]
[1748492356740,0.29208166,684.74,683.46,0.57510362]
[1748492356943,0.29208166,684.74,683.45,0.522]
[1748492357139,0.29208166,684.74,683.46,0.5751035]
[1748492357439,0.29208166,684.74,683.45,0.522]